[Event "Titled Tuesday Blitz November 22 Late 2022"]
[White "Terry, Renato"]
[Black "Jobava, Baadur"]
[WhiteFideId "3803457"]
[BlackFideId "13601520"]
[WhiteElo "2577"]
[BlackElo "2582"]
[Result "0-1"]
[Round "11"]
[TimeControl "180+1"]
[Date "2022.11.23"]
[WhiteClock "0:00:03"]
[BlackClock "0:00:04"]

1. d4 {[%clk 0:02:58]}  d5 {[%clk 0:03:00]} 2. Bg5 {[%clk 0:02:52]}  Nf6 {[%clk 0:02:56]} 3. Bxf6 {[%clk 0:02:51]}  gxf6 {[%clk 0:02:56]} 4. e3 {[%clk 0:02:51]}  e6 {[%clk 0:02:54]} 5. c4 {[%clk 0:02:50]}  c6 {[%clk 0:02:34]} 6. Nc3 {[%clk 0:02:49]}  Nd7 {[%clk 0:02:34]} 7. Nf3 {[%clk 0:02:49]}  f5 {[%clk 0:02:33]} 8. cxd5 {[%clk 0:02:46]}  cxd5 {[%clk 0:02:31]} 9. Rc1 {[%clk 0:02:45]}  a6 {[%clk 0:02:25]} 10. Bd3 {[%clk 0:02:39]}  Bd6 {[%clk 0:02:24]} 11. O-O {[%clk 0:02:36]}  O-O {[%clk 0:02:23]} 12. Qc2 {[%clk 0:02:30]}  Kh8 {[%clk 0:02:16]} 13. Ne2 {[%clk 0:02:27]}  Qe7 {[%clk 0:02:14]} 14. Nf4 {[%clk 0:02:22]}  Nf6 {[%clk 0:02:10]} 15. Ne5 {[%clk 0:02:13]}  Bd7 {[%clk 0:02:08]} 16. Qb3 {[%clk 0:02:07]}  Rab8 {[%clk 0:02:07]} 17. h3 {[%clk 0:01:52]}  Rfd8 {[%clk 0:01:56]} 18. Rc2 {[%clk 0:01:47]}  Be8 {[%clk 0:01:55]} 19. Rfc1 {[%clk 0:01:45]}  Nd7 {[%clk 0:01:46]} 20. Nf3 {[%clk 0:01:37]}  Nf6 {[%clk 0:01:44]} 21. Qb6 {[%clk 0:01:28]}  Nd7 {[%clk 0:01:40]} 22. Qb3 {[%clk 0:01:25]}  Nf6 {[%clk 0:01:40]} 23. a3 {[%clk 0:01:17]}  Nd7 {[%clk 0:01:21]} 24. Rc3 {[%clk 0:00:59]}  Nf6 {[%clk 0:01:21]} 25. Qd1 {[%clk 0:00:40]}  Ne4 {[%clk 0:01:17]} 26. Bxe4 {[%clk 0:00:20]}  dxe4 {[%clk 0:01:08]} 27. Ne1 {[%clk 0:00:18]}  Bc6 {[%clk 0:00:57]} 28. g3 {[%clk 0:00:06]}  e5 {[%clk 0:00:44]} 29. Ne2 {[%clk 0:00:04]}  Bb5 {[%clk 0:00:43]} 30. a4 {[%clk 0:00:02]}  Bxe2 {[%clk 0:00:39]} 31. Qxe2 {[%clk 0:00:03]}  exd4 {[%clk 0:00:39]} 32. exd4 {[%clk 0:00:04]}  f4 {[%clk 0:00:39]} 33. g4 {[%clk 0:00:01]}  Re8 {[%clk 0:00:30]} 34. f3 {[%clk 0:00:01]}  e3 {[%clk 0:00:29]} 35. Ng2 {[%clk 0:00:02]}  Rbd8 {[%clk 0:00:27]} 36. Rd1 {[%clk 0:00:02]}  Qf6 {[%clk 0:00:24]} 37. Rcd3 {[%clk 0:00:01]}  Rd7 {[%clk 0:00:18]} 38. b3 {[%clk 0:00:01]}  Red8 {[%clk 0:00:18]} 39. Qe1 {[%clk 0:00:01]}  Qe7 {[%clk 0:00:15]} 40. d5 {[%clk 0:00:02]}  Be5 {[%clk 0:00:13]} 41. Qe2 {[%clk 0:00:02]}  Qc5 {[%clk 0:00:12]} 42. g5 {[%clk 0:00:01]}  Rxd5 {[%clk 0:00:11]} 43. h4 {[%clk 0:00:01]}  Kg7 {[%clk 0:00:08]} 44. Rxd5 {[%clk 0:00:01]}  Rxd5 {[%clk 0:00:08]} 45. Kh2 {[%clk 0:00:01]}  Rxd1 {[%clk 0:00:07]} 46. Qxd1 {[%clk 0:00:02]}  Qd4 {[%clk 0:00:06]} 47. Qe2 {[%clk 0:00:01]}  Qd2 {[%clk 0:00:06]} 48. Qc4 {[%clk 0:00:02]}  e2 {[%clk 0:00:05]} 49. Qe4 {[%clk 0:00:02]}  Bc3 {[%clk 0:00:03]} 50. h5 {[%clk 0:00:02]}  e1=Q {[%clk 0:00:03]} 51. h6+ {[%clk 0:00:03]}  Kf8 {[%clk 0:00:04]} 0-1


[Site "https://www.chess.com"]

[Event "Titled Tuesday Blitz November 22 Late 2022"]
[White "Todev, Simeon"]
[Black "Pinheiro, Iung Alicio de O."]
[WhiteFideId "2925133"]
[BlackFideId "2104350"]
[WhiteElo "1938"]
[BlackElo "2283"]
[Result "0-1"]
[Round "11"]
[TimeControl "180+1"]
[Date "2022.11.23"]
[WhiteClock "0:02:16"]
[BlackClock "0:01:41"]

1. e4 {[%clk 0:02:53]}  c5 {[%clk 0:02:56]} 2. Nf3 {[%clk 0:02:53]}  Nc6 {[%clk 0:02:56]} 3. c3 {[%clk 0:02:53]}  Nf6 {[%clk 0:02:55]} 4. e5 {[%clk 0:02:53]}  Nd5 {[%clk 0:02:55]} 5. d4 {[%clk 0:02:54]}  cxd4 {[%clk 0:02:55]} 6. cxd4 {[%clk 0:02:55]}  d6 {[%clk 0:02:47]} 7. Nc3 {[%clk 0:02:50]}  e6 {[%clk 0:02:40]} 8. Nxd5 {[%clk 0:02:48]}  exd5 {[%clk 0:02:40]} 9. Bd3 {[%clk 0:02:48]}  Be7 {[%clk 0:02:29]} 10. h4 {[%clk 0:02:42]}  Bg4 {[%clk 0:02:24]} 11. Be2 {[%clk 0:02:40]}  Qb6 {[%clk 0:02:18]} 12. exd6 {[%clk 0:02:38]}  Bxd6 {[%clk 0:02:18]} 13. O-O {[%clk 0:02:36]}  O-O {[%clk 0:02:12]} 14. Be3 {[%clk 0:02:33]}  Rad8 {[%clk 0:01:51]} 15. Bd3 {[%clk 0:02:32]}  h6 {[%clk 0:01:46]} 16. Be2 {[%clk 0:02:25]}  Bb8 {[%clk 0:01:45]} 17. b3 {[%clk 0:02:17]}  Qc7 {[%clk 0:01:44]} 18. Rc1 {[%clk 0:02:16]}  Bxf3 {[%clk 0:01:42]} 19. Bxf3 {[%clk 0:02:16]}  Qh2# {[%clk 0:01:41]} 0-1


[Site "https://www.chess.com"]

[Event "Titled Tuesday Blitz November 22 Late 2022"]
[White "Toniutti, Ezio"]
[Black "Bobkov, Vadim"]
[WhiteFideId "113034"]
[BlackFideId "34110876"]
[WhiteElo "2215"]
[BlackElo "2172"]
[Result "0-1"]
[Round "11"]
[TimeControl "180+1"]
[Date "2022.11.23"]
[WhiteClock "0:00:36"]
[BlackClock "0:00:05"]

1. d4 {[%clk 0:02:58]}  Nf6 {[%clk 0:02:58]} 2. c4 {[%clk 0:02:58]}  e6 {[%clk 0:02:59]} 3. g3 {[%clk 0:02:57]}  c5 {[%clk 0:02:57]} 4. d5 {[%clk 0:02:57]}  g6 {[%clk 0:02:58]} 5. Nc3 {[%clk 0:02:57]}  Bg7 {[%clk 0:02:58]} 6. Nf3 {[%clk 0:02:57]}  O-O {[%clk 0:02:58]} 7. Bg2 {[%clk 0:02:57]}  d6 {[%clk 0:02:57]} 8. O-O {[%clk 0:02:48]}  e5 {[%clk 0:02:57]} 9. e4 {[%clk 0:02:47]}  h6 {[%clk 0:02:56]} 10. Ne1 {[%clk 0:02:48]}  a6 {[%clk 0:02:45]} 11. a4 {[%clk 0:02:47]}  Nh5 {[%clk 0:02:26]} 12. Nd3 {[%clk 0:02:42]}  f5 {[%clk 0:02:18]} 13. exf5 {[%clk 0:02:41]}  Bxf5 {[%clk 0:02:19]} 14. Ne4 {[%clk 0:02:39]}  Nf6 {[%clk 0:02:16]} 15. f3 {[%clk 0:02:33]}  Qe7 {[%clk 0:01:57]} 16. Be3 {[%clk 0:02:30]}  Nbd7 {[%clk 0:01:54]} 17. Qe2 {[%clk 0:02:26]}  Rab8 {[%clk 0:01:52]} 18. b3 {[%clk 0:02:24]}  b5 {[%clk 0:01:40]} 19. axb5 {[%clk 0:02:23]}  axb5 {[%clk 0:01:40]} 20. Ra7 {[%clk 0:02:23]}  bxc4 {[%clk 0:01:33]} 21. bxc4 {[%clk 0:02:22]}  Ra8 {[%clk 0:01:27]} 22. Rfa1 {[%clk 0:02:21]}  Rxa7 {[%clk 0:01:26]} 23. Rxa7 {[%clk 0:02:21]}  Rb8 {[%clk 0:01:19]} 24. Ndf2 {[%clk 0:02:17]}  Rb1+ {[%clk 0:01:13]} 25. Bf1 {[%clk 0:02:17]}  Qf8 {[%clk 0:01:04]} 26. Qc2 {[%clk 0:02:15]}  Rb8 {[%clk 0:00:44]} 27. Qa4 {[%clk 0:02:07]}  Nb6 {[%clk 0:00:36]} 28. Qc6 {[%clk 0:02:04]}  Nxe4 {[%clk 0:00:30]} 29. fxe4 {[%clk 0:02:04]}  Bc8 {[%clk 0:00:22]} 30. Qc7 {[%clk 0:01:52]}  Nd7 {[%clk 0:00:18]} 31. Kg2 {[%clk 0:01:43]}  Bf6 {[%clk 0:00:18]} 32. Ng4 {[%clk 0:01:32]}  Bd8 {[%clk 0:00:18]} 33. Nxh6+ {[%clk 0:01:28]}  Qxh6 {[%clk 0:00:19]} 34. Qxd8+ {[%clk 0:01:28]}  Qf8 {[%clk 0:00:19]} 35. Qxf8+ {[%clk 0:01:22]}  Kxf8 {[%clk 0:00:17]} 36. Bh6+ {[%clk 0:01:20]}  Ke7 {[%clk 0:00:15]} 37. Bg5+ {[%clk 0:01:19]}  Ke8 {[%clk 0:00:15]} 38. Be2 {[%clk 0:01:18]}  Rb7 {[%clk 0:00:14]} 39. Ra8 {[%clk 0:01:17]}  Rb8 {[%clk 0:00:14]} 40. Ra6 {[%clk 0:01:16]}  Rb6 {[%clk 0:00:14]} 41. Ra2 {[%clk 0:01:12]}  Rb4 {[%clk 0:00:13]} 42. Bg4 {[%clk 0:01:10]}  Nb6 {[%clk 0:00:10]} 43. Be6 {[%clk 0:00:49]}  Rxc4 {[%clk 0:00:06]} 44. Ra7 {[%clk 0:00:48]}  Rxe4 {[%clk 0:00:02]} 45. Re7+ {[%clk 0:00:46]}  Kf8 {[%clk 0:00:02]} 46. Rf7+ {[%clk 0:00:46]}  Kg8 {[%clk 0:00:02]} 47. Rc7+ {[%clk 0:00:39]}  Bxe6 {[%clk 0:00:02]} 48. dxe6 {[%clk 0:00:40]}  Nd5 {[%clk 0:00:02]} 49. e7 {[%clk 0:00:39]}  Nxc7 {[%clk 0:00:02]} 50. Kf2 {[%clk 0:00:35]}  Rd4 {[%clk 0:00:03]} 51. Kf3 {[%clk 0:00:36]}  Kf7 {[%clk 0:00:03]} 52. Ke3 {[%clk 0:00:36]}  Ke8 {[%clk 0:00:04]} 53. Ke2 {[%clk 0:00:35]}  Ne6 {[%clk 0:00:04]} 54. Ke3 {[%clk 0:00:36]}  Nxg5 {[%clk 0:00:05]} 0-1


[Site "https://www.chess.com"]

[Event "Titled Tuesday Blitz November 22 Late 2022"]
[White "Weetik, Vjacheslav"]
[Black "Ibarra Jerez, Jose Carlos"]
[WhiteFideId "4153472"]
[BlackFideId "2226332"]
[WhiteElo "2469"]
[BlackElo "2638"]
[Result "0-1"]
[Round "11"]
[TimeControl "180+1"]
[Date "2022.11.23"]
[WhiteClock "0:00:01"]
[BlackClock "0:00:43"]

1. e4 {[%clk 0:02:55]}  c5 {[%clk 0:02:58]} 2. Nf3 {[%clk 0:02:55]}  Nc6 {[%clk 0:02:58]} 3. Bb5 {[%clk 0:02:53]}  e6 {[%clk 0:02:58]} 4. O-O {[%clk 0:02:36]}  Nge7 {[%clk 0:02:58]} 5. Re1 {[%clk 0:02:32]}  Nd4 {[%clk 0:02:57]} 6. Nxd4 {[%clk 0:02:27]}  cxd4 {[%clk 0:02:58]} 7. c3 {[%clk 0:02:27]}  a6 {[%clk 0:02:58]} 8. Bf1 {[%clk 0:02:19]}  Nc6 {[%clk 0:02:59]} 9. Na3 {[%clk 0:02:07]}  Bc5 {[%clk 0:02:58]} 10. Nc2 {[%clk 0:01:52]}  Qf6 {[%clk 0:02:47]} 11. e5 {[%clk 0:01:47]}  Qg6 {[%clk 0:02:28]} 12. b4 {[%clk 0:01:23]}  Ba7 {[%clk 0:02:27]} 13. Bb2 {[%clk 0:01:18]}  dxc3 {[%clk 0:02:11]} 14. Bxc3 {[%clk 0:01:18]}  O-O {[%clk 0:02:10]} 15. d4 {[%clk 0:01:18]}  Ne7 {[%clk 0:02:02]} 16. Bd3 {[%clk 0:01:17]}  f5 {[%clk 0:02:00]} 17. Ne3 {[%clk 0:01:02]}  b5 {[%clk 0:01:59]} 18. Be2 {[%clk 0:00:46]}  f4 {[%clk 0:01:36]} 19. Bd3 {[%clk 0:00:17]}  fxe3 {[%clk 0:01:31]} 20. Rxe3 {[%clk 0:00:11]}  Nf5 {[%clk 0:01:27]} 21. Rh3 {[%clk 0:00:08]}  Qf7 {[%clk 0:01:04]} 22. Qg4 {[%clk 0:00:07]}  Bb7 {[%clk 0:01:00]} 23. Rd1 {[%clk 0:00:03]}  Rac8 {[%clk 0:00:59]} 24. Bb2 {[%clk 0:00:03]}  g6 {[%clk 0:00:59]} 25. d5 {[%clk 0:00:02]}  Bxd5 {[%clk 0:00:57]} 26. Qg5 {[%clk 0:00:01]}  Qe7 {[%clk 0:00:43]} 27. Kh1 {[%clk 0:00:01]}  Qxg5 {[%clk 0:00:43]} 0-1


[Site "https://www.chess.com"]

[Event "Titled Tuesday Blitz November 22 Late 2022"]
[White "Wirig, Anthony"]
[Black "Mgeladze, Tamaz"]
[WhiteFideId "615013"]
[BlackFideId "13601202"]
[WhiteElo "2487"]
[BlackElo "2288"]
[Result "1-0"]
[Round "11"]
[TimeControl "180+1"]
[Date "2022.11.23"]
[WhiteClock "0:00:05"]
[BlackClock "0:00:06"]

1. c4 {[%clk 0:02:57]}  c5 {[%clk 0:02:58]} 2. g3 {[%clk 0:02:57]}  Nc6 {[%clk 0:02:56]} 3. Bg2 {[%clk 0:02:57]}  g6 {[%clk 0:02:57]} 4. Nc3 {[%clk 0:02:57]}  Bg7 {[%clk 0:02:57]} 5. d3 {[%clk 0:02:58]}  Nf6 {[%clk 0:02:57]} 6. Bf4 {[%clk 0:02:58]}  h6 {[%clk 0:02:56]} 7. Nf3 {[%clk 0:02:58]}  O-O {[%clk 0:02:56]} 8. O-O {[%clk 0:02:57]}  d6 {[%clk 0:02:56]} 9. Rb1 {[%clk 0:02:57]}  a6 {[%clk 0:02:54]} 10. a3 {[%clk 0:02:57]}  Rb8 {[%clk 0:02:54]} 11. b4 {[%clk 0:02:56]}  cxb4 {[%clk 0:02:54]} 12. axb4 {[%clk 0:02:57]}  b5 {[%clk 0:02:55]} 13. c5 {[%clk 0:02:45]}  e5 {[%clk 0:02:54]} 14. Bd2 {[%clk 0:02:41]}  d5 {[%clk 0:02:50]} 15. e3 {[%clk 0:02:33]}  d4 {[%clk 0:02:34]} 16. exd4 {[%clk 0:02:30]}  exd4 {[%clk 0:02:34]} 17. Ne4 {[%clk 0:02:20]}  Nd5 {[%clk 0:02:26]} 18. Qc1 {[%clk 0:02:10]}  Kh7 {[%clk 0:02:24]} 19. Re1 {[%clk 0:02:08]}  Bf5 {[%clk 0:02:23]} 20. Nh4 {[%clk 0:02:00]}  Be6 {[%clk 0:02:06]} 21. Nd6 {[%clk 0:01:49]}  Ne5 {[%clk 0:01:48]} 22. Rb3 {[%clk 0:01:31]}  Nc3 {[%clk 0:01:17]} 23. Bxc3 {[%clk 0:00:50]}  Bxb3 {[%clk 0:01:14]} 24. Rxe5 {[%clk 0:00:42]}  Bxe5 {[%clk 0:01:11]} 25. Bd2 {[%clk 0:00:42]}  Bxd6 {[%clk 0:01:04]} 26. cxd6 {[%clk 0:00:42]}  Qxd6 {[%clk 0:01:05]} 27. Bf4 {[%clk 0:00:33]}  Qxb4 {[%clk 0:00:58]} 28. Bxb8 {[%clk 0:00:33]}  Rxb8 {[%clk 0:00:54]} 29. Be4 {[%clk 0:00:32]}  Re8 {[%clk 0:00:40]} 30. Qc6 {[%clk 0:00:23]}  Re6 {[%clk 0:00:23]} 31. Qb7 {[%clk 0:00:19]}  Qe7 {[%clk 0:00:18]} 32. Qa8 {[%clk 0:00:15]}  a5 {[%clk 0:00:10]} 33. Nf3 {[%clk 0:00:14]}  Qe8 {[%clk 0:00:04]} 34. Qb7 {[%clk 0:00:13]}  Rxe4 {[%clk 0:00:04]} 35. dxe4 {[%clk 0:00:13]}  d3 {[%clk 0:00:05]} 36. h4 {[%clk 0:00:10]}  a4 {[%clk 0:00:03]} 37. h5 {[%clk 0:00:10]}  gxh5 {[%clk 0:00:04]} 38. e5 {[%clk 0:00:03]}  Bc4 {[%clk 0:00:04]} 39. Qe4+ {[%clk 0:00:03]}  Kg7 {[%clk 0:00:03]} 40. Qf4 {[%clk 0:00:04]}  Qe6 {[%clk 0:00:03]} 41. Nh4 {[%clk 0:00:05]}  d2 {[%clk 0:00:03]} 42. Qxd2 {[%clk 0:00:04]}  Qd5 {[%clk 0:00:03]} 43. Qf4 {[%clk 0:00:04]}  Qd1+ {[%clk 0:00:02]} 44. Kh2 {[%clk 0:00:04]}  Qd5 {[%clk 0:00:03]} 45. Nf5+ {[%clk 0:00:05]}  Kg6 {[%clk 0:00:03]} 46. Ne7+ {[%clk 0:00:04]}  Kh7 {[%clk 0:00:04]} 47. Nxd5 {[%clk 0:00:05]}  Bxd5 {[%clk 0:00:04]} 48. Qf5+ {[%clk 0:00:06]}  Kg7 {[%clk 0:00:04]} 49. Qd3 {[%clk 0:00:06]}  Be6 {[%clk 0:00:05]} 50. Qxb5 {[%clk 0:00:06]}  a3 {[%clk 0:00:06]} 51. Qa5 {[%clk 0:00:07]}  a2 {[%clk 0:00:07]} 52. Qa3 {[%clk 0:00:07]}  h4 {[%clk 0:00:08]} 53. f4 {[%clk 0:00:08]}  hxg3+ {[%clk 0:00:09]} 54. Kxg3 {[%clk 0:00:09]}  Kg6 {[%clk 0:00:09]} 55. Kf3 {[%clk 0:00:08]}  h5 {[%clk 0:00:09]} 56. Qd3+ {[%clk 0:00:08]}  Bf5 {[%clk 0:00:09]} 57. Qf1 {[%clk 0:00:08]}  Bb1 {[%clk 0:00:07]} 58. Qa6+ {[%clk 0:00:07]}  Kg7 {[%clk 0:00:05]} 59. f5 {[%clk 0:00:06]}  h4 {[%clk 0:00:05]} 60. Kg4 {[%clk 0:00:05]}  h3 {[%clk 0:00:04]} 61. Kxh3 {[%clk 0:00:05]}  Bxf5+ {[%clk 0:00:05]} 62. Kh4 {[%clk 0:00:05]}  Be6 {[%clk 0:00:06]} 63. Kg5 {[%clk 0:00:05]}  Kh7 {[%clk 0:00:06]} 64. Qa7 {[%clk 0:00:05]}  Kg7 {[%clk 0:00:06]} 65. Qa8 {[%clk 0:00:05]}  Kh7 {[%clk 0:00:06]} 66. Kf6 {[%clk 0:00:05]}  Bd5 {[%clk 0:00:06]} 67. Qf8 {[%clk 0:00:04]}  a1=Q {[%clk 0:00:06]} 68. Qg7# {[%clk 0:00:05]} 1-0


[Site "https://www.chess.com"]

[Event "Titled Tuesday Blitz November 22 Late 2022"]
[White "Yurovskykh, Oleksandr"]
[Black "Rubio Tent, Francisco"]
[WhiteFideId "14134020"]
[BlackFideId "2238233"]
[WhiteElo "2265"]
[BlackElo "2211"]
[Result "0-1"]
[Round "11"]
[TimeControl "180+1"]
[Date "2022.11.23"]
[WhiteClock "0:00:37"]
[BlackClock "0:00:09"]

1. f3 {[%clk 0:02:59]}  e5 {[%clk 0:02:58]} 2. Kf2 {[%clk 0:02:59]}  d5 {[%clk 0:02:59]} 3. e3 {[%clk 0:03:00]}  f5 {[%clk 0:02:57]} 4. d4 {[%clk 0:02:59]}  e4 {[%clk 0:02:56]} 5. f4 {[%clk 0:02:56]}  Nf6 {[%clk 0:02:56]} 6. h3 {[%clk 0:02:49]}  c5 {[%clk 0:02:53]} 7. Ne2 {[%clk 0:02:48]}  Nc6 {[%clk 0:02:52]} 8. c3 {[%clk 0:02:48]}  b6 {[%clk 0:02:40]} 9. Nd2 {[%clk 0:02:43]}  Be7 {[%clk 0:02:38]} 10. b3 {[%clk 0:02:37]}  Ba6 {[%clk 0:02:35]} 11. Bb2 {[%clk 0:02:37]}  O-O {[%clk 0:02:31]} 12. c4 {[%clk 0:02:35]}  dxc4 {[%clk 0:02:26]} 13. Nxc4 {[%clk 0:02:35]}  Nd5 {[%clk 0:02:13]} 14. dxc5 {[%clk 0:02:30]}  Bxc5 {[%clk 0:02:10]} 15. Nc3 {[%clk 0:02:09]}  Nxf4 {[%clk 0:01:55]} 16. Qxd8 {[%clk 0:01:47]}  Raxd8 {[%clk 0:01:56]} 17. g3 {[%clk 0:01:46]}  Nd3+ {[%clk 0:01:50]} 18. Bxd3 {[%clk 0:01:46]}  Rxd3 {[%clk 0:01:50]} 19. Rhd1 {[%clk 0:01:46]}  Bxc4 {[%clk 0:01:46]} 20. bxc4 {[%clk 0:01:45]}  Rxe3 {[%clk 0:01:43]} 21. Kg2 {[%clk 0:01:43]}  Bd4 {[%clk 0:01:30]} 22. Rac1 {[%clk 0:01:35]}  Be5 {[%clk 0:01:26]} 23. Kf2 {[%clk 0:01:20]}  Rf3+ {[%clk 0:01:24]} 24. Ke2 {[%clk 0:01:20]}  Nd4+ {[%clk 0:01:12]} 25. Kd2 {[%clk 0:01:18]}  Rd3+ {[%clk 0:01:10]} 26. Ke1 {[%clk 0:01:18]}  Bxg3+ {[%clk 0:01:02]} 27. Kf1 {[%clk 0:01:18]}  Rf3+ {[%clk 0:00:51]} 28. Kg2 {[%clk 0:01:17]}  Ne6 {[%clk 0:00:49]} 29. Rc2 {[%clk 0:01:14]}  Nf4+ {[%clk 0:00:48]} 30. Kh1 {[%clk 0:01:13]}  Nxh3 {[%clk 0:00:48]} 31. Nd5 {[%clk 0:01:11]}  Nf2+ {[%clk 0:00:46]} 32. Rxf2 {[%clk 0:01:11]}  Rxf2 {[%clk 0:00:43]} 33. Bd4 {[%clk 0:01:11]}  Rh2+ {[%clk 0:00:42]} 34. Kg1 {[%clk 0:01:11]}  Rxa2 {[%clk 0:00:38]} 35. Rf1 {[%clk 0:01:08]}  f4 {[%clk 0:00:31]} 36. Ne7+ {[%clk 0:01:05]}  Kh8 {[%clk 0:00:31]} 37. c5 {[%clk 0:01:02]}  bxc5 {[%clk 0:00:31]} 38. Bxc5 {[%clk 0:01:03]}  Rd8 {[%clk 0:00:28]} 39. Rb1 {[%clk 0:00:58]}  f3 {[%clk 0:00:19]} 40. Nf5 {[%clk 0:00:56]}  Bh2+ {[%clk 0:00:17]} 41. Kh1 {[%clk 0:00:52]}  Bf4 {[%clk 0:00:16]} 42. Bd4 {[%clk 0:00:52]}  Rh2+ {[%clk 0:00:12]} 43. Kg1 {[%clk 0:00:52]}  Rg2+ {[%clk 0:00:13]} 44. Kh1 {[%clk 0:00:52]}  h6 {[%clk 0:00:12]} 45. Rb7 {[%clk 0:00:42]}  Rxd4 {[%clk 0:00:11]} 46. Nxd4 {[%clk 0:00:41]}  Rd2 {[%clk 0:00:09]} 47. Nf5 {[%clk 0:00:37]}  Rd1# {[%clk 0:00:09]} 0-1


[Site "https://www.chess.com"]